fUST/lending_fUST_20260205
["ID","MTS","AMOUNT","RATE_DAILY","PERIOD"]
[404574409,1770306639184,-500.0,0.0001327,2]
[404574411,1770306639194,-500.0,0.0001327,2]
[404574413,1770306639204,-500.0,0.0001327,2]
[404574415,1770306639213,-500.0,0.0001327,2]
[404574417,1770306639223,-500.0,0.0001327,2]
[404574433,1770306639374,-512.4788261,0.0001327,2]
[404574435,1770306639386,-500.0,0.0001327,2]
[404574438,1770306639396,-500.0,0.0001327,2]
[404574439,1770306639405,-500.0,0.0001327,2]
[404574441,1770306639415,-500.0,0.0001327,2]
[404574443,1770306639425,-500.0,0.0001327,2]
[404574445,1770306639434,-500.0,0.0001327,2]
[404574446,1770306639443,-500.0,0.0001327,2]
[404574448,1770306639452,-500.0,0.0001327,2]
[404574449,1770306639461,-500.0,0.0001327,2]
[404574450,1770306639470,-500.0,0.0001327,2]
[404574451,1770306639479,-502.53558875,0.0001327,2]
[404574452,1770306639494,-500.0,0.0001327,2]
[404574454,1770306639504,-500.0,0.0001327,2]
[404574456,1770306639513,-500.0,0.0001327,2]
[404574457,1770306639523,-500.0,0.0001327,2]
[404574458,1770306639533,-500.0,0.0001327,2]
[404574459,1770306639542,-500.0,0.0001327,2]
[404574460,1770306639555,-500.0,0.0001327,2]
[404574461,1770306639564,-500.0,0.0001327,2]
[404574462,1770306639573,-344.14796511,0.0001327,2]
[404574463,1770306639582,-500.0,0.0001327,2]
[404574464,1770306639592,-500.0,0.0001327,2]
[404574465,1770306639602,-320.49969174,0.0001327,2]
[404574466,1770306639612,-500.0,0.0001327,2]
[404574467,1770306639622,-500.0,0.0001327,2]
[404574468,1770306639632,-500.0,0.0001327,2]
[404574469,1770306639642,-250.0,0.0001327,2]
[404574470,1770306639651,-500.0,0.0001327,2]
[404574471,1770306639661,-500.0,0.0001327,2]
[404574472,1770306639670,-500.0,0.0001327,2]
[404574473,1770306639680,-500.0,0.0001327,2]
[404574474,1770306639690,-500.0,0.0001327,2]
[404574475,1770306639699,-299.99999999,0.0001327,2]
[404574476,1770306639708,-500.0,0.0001327,2]
[404574477,1770306639718,-500.0,0.0001327,2]
[404574478,1770306639728,-500.0,0.0001327,2]
[404574479,1770306639742,-500.0,0.0001327,2]
[404574480,1770306639752,-500.0,0.0001327,2]
[404574481,1770306639761,-500.0,0.0001327,2]
[404574482,1770306639770,-500.0,0.0001327,2]
[404574483,1770306639780,-500.0,0.0001327,2]
[404574484,1770306639790,-500.0,0.0001327,2]
[404574485,1770306639800,-500.0,0.0001327,2]
[404574486,1770306639809,-500.0,0.0001327,2]
[404574487,1770306639818,-500.0,0.0001327,2]
[404574488,1770306639828,-500.0,0.0001327,2]
[404574493,1770306639837,-500.0,0.0001327,2]
[404574497,1770306639847,-500.0,0.0001327,2]
[404574500,1770306639857,-500.0,0.0001327,2]
[404574502,1770306639866,-390.0,0.0001327,2]
[404574504,1770306639875,-500.0,0.0001327,2]
[404574505,1770306639885,-500.0,0.0001327,2]
[404574506,1770306639894,-500.0,0.0001327,2]
[404574507,1770306639903,-500.0,0.0001327,2]
[404574508,1770306639912,-500.0,0.0001327,2]
[404574509,1770306639922,-500.0,0.0001327,2]
[404574510,1770306639931,-500.0,0.0001327,2]
[404574511,1770306639941,-500.0,0.0001327,2]
[404574512,1770306639950,-500.0,0.0001327,2]
[404574513,1770306639959,-500.0,0.0001327,2]
[404574514,1770306639969,-500.0,0.0001327,2]
[404574515,1770306639978,-500.0,0.0001327,2]
[404574516,1770306639991,-500.0,0.0001327,2]
[404574517,1770306640001,-500.0,0.0001327,2]
[404574518,1770306640011,-500.0,0.0001327,2]
[404574519,1770306640021,-500.0,0.0001327,2]
[404574520,1770306640030,-500.0,0.0001327,2]
[404574521,1770306640040,-399.77372617,0.0001327,2]
[404574522,1770306640049,-500.0,0.0001327,2]
[404574524,1770306640058,-500.0,0.0001327,2]
[404574525,1770306640068,-500.0,0.0001327,2]
[404574526,1770306640077,-500.0,0.0001327,2]
[404574527,1770306640087,-500.0,0.0001327,2]
[404574528,1770306640097,-500.0,0.0001327,2]
[404574529,1770306640106,-500.0,0.0001327,2]
[404574530,1770306640115,-500.0,0.0001327,2]
[404574531,1770306640125,-500.0,0.0001327,2]
[404574532,1770306640135,-500.0,0.0001327,2]
[404574533,1770306640144,-500.0,0.0001327,2]
[404574534,1770306640155,-500.0,0.0001327,2]
[404574535,1770306640164,-500.0,0.0001327,2]
[404574536,1770306640173,-500.0,0.0001327,2]
[404574537,1770306640183,-500.0,0.0001327,2]
[404574538,1770306640193,-500.0,0.0001327,2]
[404574539,1770306640202,-350.58069635,0.0001327,2]
[404574540,1770306640212,-500.0,0.0001327,2]
[404574541,1770306640222,-500.0,0.0001327,2]
[404574542,1770306640231,-500.0,0.0001327,2]
[404574543,1770306640244,-452.84630715,0.00013821,2]
[404574544,1770306640254,-1606.865445,0.00014151,2]
[404574545,1770306640263,-500.0,0.00014246,2]
[404574546,1770306640273,-500.0,0.00014246,2]
[404574547,1770306640282,-500.0,0.00014246,2]
[404574548,1770306640291,-500.0,0.00014246,2]
[404574549,1770306640301,-1000.0,0.00014247,2]
[404574550,1770306640311,-420.0,0.00014539,2]
[404574551,1770306640321,-274.0,0.00014539,2]
[404574552,1770306640330,-420.0,0.00014539,2]
[404574553,1770306640340,-420.0,0.00014539,2]
[404574554,1770306640350,-420.0,0.00014587,2]
[404574555,1770306640360,-1544.0,0.00014587,2]
[404574556,1770306640369,-1606.865445,0.00014722,2]
[404574557,1770306640379,-190.670844,0.00015068,2]
[404574558,1770306640388,-177.0,0.00015262,2]
[404574559,1770306640398,-1606.865445,0.00015294,2]
[404574560,1770306640407,-5784.68,0.00015342,2]
[404574561,1770306640416,-1606.865445,0.00015866,2]
[404574562,1770306640425,-293.75163348,0.00015866,2]
[404574563,1770306640435,-181.0,0.0001594,2]
[404574565,1770306640444,-587.0,0.0001594,2]
[404574567,1770306640453,-480.0,0.0001594,2]
[404574569,1770306640462,-500.0,0.00016035,2]
[404574571,1770306640471,-500.0,0.00016035,2]
[404574573,1770306640480,-587.0,0.00016046,2]
[404574575,1770306640494,-1099.12,0.00016338,2]
[404574577,1770306640503,-168.34,0.00016338,2]
[404574579,1770306640512,-168.34,0.00016338,2]
[404574581,1770306640522,-168.34,0.00016338,2]
[404574583,1770306640532,-168.34,0.00016338,2]
[404574585,1770306640541,-168.35,0.00016338,2]
[404574587,1770306640553,-1606.865445,0.00016437,2]
[404574588,1770306640562,-500.0,0.00016438,2]
[404574589,1770306640572,-599.11934858,0.00016438,2]
[404574591,1770306640582,-204.0,0.00017262,2]
[404574593,1770306640591,-250.0,0.00017405,2]
[404574594,1770306640600,-823.0,0.00017477,2]
[404574595,1770306640609,-283.0,0.0001765,2]
[404574596,1770306640620,-303.10001603,0.000189,2]
[404574597,1770306640630,-500.0,0.00019061,2]
[404574598,1770306640639,-500.0,0.00019061,2]
[404574599,1770306640649,-505.97227165,0.00019061,2]
[404574600,1770306640659,-303.10001606,0.00019089,2]
[404574601,1770306640668,-290.0,0.00019161,2]
[404574602,1770306640677,-231.0,0.00019262,2]
[404574603,1770306640687,-432.01,0.000193,2]
[404574604,1770306640696,-183.2663833,0.00019858,2]
[404574605,1770306640706,-258.0,0.00021262,2]
[404574606,1770306640716,-190.670844,0.00021918,2]
[404574607,1770306640725,-158.88,0.00022,7]
[404574608,1770306640734,-285.0,0.00023262,2]
[404574609,1770306640748,-562.83289725,0.00024147,2]
[404574610,1770306640757,-220.62993458,0.000248,2]
[404574612,1770306640768,-1041.66666667,0.0002489,10]
[404574614,1770306640777,-13457.46,0.0002489,10]
[404574616,1770306640786,-23461.1103505,0.000249,2]
[404574618,1770306640795,-312.0,0.00025263,2]
[404574620,1770306640806,-4133.3635157,0.00025562,2]
[404574622,1770306640815,-804.59581534,0.00026053,2]
[404574624,1770306640825,-300.0,0.00026116,2]
[404574626,1770306640834,-339.0,0.00027262,2]
[404574628,1770306640844,-297.18,0.00027387,3]
[404574629,1770306640853,-500.0,0.00027397,5]
[404574632,1770306640863,-150.0,0.00027397,5]
[404574634,1770306640873,-1002.92671423,0.00027945,5]
[404574636,1770306640882,-152.37298089,0.00027945,5]
[404574638,1770306640891,-1041.66666667,0.00028,3]
[404574639,1770306640901,-4692.2220701,0.0002825,2]
[404574642,1770306640911,-420.0,0.0002826,2]
[404574644,1770306640921,-594.36,0.00028757,3]
[404574645,1770306640931,-190.670844,0.00028767,60]
[404574648,1770306640941,-1041.66666667,0.00029,10]
[404574650,1770306640950,-366.0,0.00029263,2]
[404574652,1770306640959,-33543.45064,0.00030062,60]
[404574654,1770306640968,-1189.61098215,0.000301,7]
[404574656,1770306640977,-432.01,0.000301,14]
[404574658,1770306640987,-158.88,0.000301,7]
[404574660,1770306641001,-390.0,0.00030136,7]
[404574662,1770306641011,-500.0,0.00030137,2]
[404574664,1770306641020,-500.0,0.00030137,2]
[404574666,1770306641029,-309.9,0.00030137,10]
[404574668,1770306641038,-1528.905033,0.00030137,15]
[404574670,1770306641047,-633.38316117,0.00030137,120]
[404574672,1770306641057,-3248.24777274,0.00030183,2]
[404574673,1770306641066,-175.31141737,0.00030386,2]
[404574675,1770306641075,-167.869162,0.00030386,30]
[404574677,1770306641085,-2729.899647,0.00030495,60]
[404574680,1770306641095,-235.0,0.0003058,2]
[404574681,1770306641104,-4692.2220701,0.0003098,2]
[404574684,1770306641114,-57925.26106446,0.0003099,2]
[404574686,1770306641123,-393.0,0.00031262,2]
[404574687,1770306641132,-4692.2220701,0.0003153,2]
[404574689,1770306641142,-24182.233523,0.0003154,60]
[404574691,1770306641151,-167.869164,0.0003154,30]
[404574693,1770306641160,-187.12,0.00031644,30]
[404574695,1770306641169,-357.87882367,0.00031914,2]
[404574697,1770306641178,-1431.51529468,0.00031914,2]
[404574699,1770306641188,-315.49570095,0.00031914,2]
[404574702,1770306641197,-366.93161644,0.00031914,2]
[404574703,1770306641206,-1787.80897206,0.00031986,2]
[404574706,1770306641216,-4692.2220701,0.00032053,2]
[404574708,1770306641225,-336.73713849,0.00032061,5]
[404574710,1770306641235,-1066.89,0.000321,2]
[404574712,1770306641250,-11001.2195,0.0003222,30]
[404574714,1770306641260,-1041.66666667,0.0003222,30]
[404574716,1770306641272,-190.34921568,0.00032785,33]
[404574718,1770306641282,-390.893,0.00032785,33]
[404574720,1770306641292,-1041.66666667,0.00032793,2]
[404574722,1770306641302,-741.26793723,0.00032793,2]
[404574724,1770306641311,-4692.2220701,0.00032867,2]
[404574726,1770306641320,-9384.4441402,0.00032867,2]
[404574728,1770306641330,-1041.66666667,0.00032877,7]
[404574730,1770306641340,-500.0,0.00032877,7]
[404574732,1770306641350,-500.0,0.00032877,7]
[404574734,1770306641359,-500.0,0.00032877,7]
[404574736,1770306641369,-500.0,0.00032877,7]
[404574738,1770306641379,-500.0,0.00032877,7]
[404574740,1770306641388,-500.0,0.00032877,7]
[404574742,1770306641398,-550.00000003,0.00032877,7]
[404574744,1770306641408,-500.0,0.00032877,7]
[404574746,1770306641418,-1041.66666667,0.0003288,10]
[404574748,1770306641427,-14683.04,0.000329,14]
[404574751,1770306641437,-187.12,0.00033151,30]
[404574753,1770306641447,-181.38781214,0.00033263,120]
[404574754,1770306641456,-180.18449522,0.0003375,5]
[404574756,1770306641465,-432.01,0.000339,30]
[404574758,1770306641475,-741.26793723,0.000339,7]
[404574760,1770306641484,-1041.66666667,0.000339,7]
[404574762,1770306641498,-265.37463507,0.00033969,5]
[404574764,1770306641508,-562.83289725,0.00034695,2]
[404574766,1770306641517,-741.26793723,0.000353,7]
[404574768,1770306641526,-1041.66666667,0.000353,7]
[404574770,1770306641536,-349.45301031,0.00035526,5]
[404574772,1770306641547,-207.57933061,0.00035616,7]
[404574774,1770306641556,-4091.21281218,0.00036,14]
[404574776,1770306641566,-1066.89,0.00036,14]
[404574778,1770306641575,-200.0,0.00036272,2]
[404574780,1770306641585,-150.71,0.00037082,60]
[404574782,1770306641594,-150.71,0.00037182,60]
[404574784,1770306641603,-4692.2220701,0.0003719,3]
[404574786,1770306641612,-369.0,0.00037257,2]
[404574788,1770306641621,-150.71,0.00037282,60]
[404574790,1770306641630,-150.71,0.00037382,60]
[404574792,1770306641639,-150.71,0.00037482,60]
[404574794,1770306641649,-14683.04,0.000375,14]
[404574796,1770306641658,-330.0,0.00037501,2]
[404574798,1770306641667,-150.71,0.00037582,60]
[404574800,1770306641675,-330.0,0.00037587,7]
[404574802,1770306641684,-228.2501,0.000376,120]
[404574804,1770306641694,-702.4334,0.000376,60]
[404574806,1770306641703,-369.0,0.00037657,120]
[404574808,1770306641712,-150.71,0.00037682,60]
[404574810,1770306641721,-150.71,0.00037782,60]
[404574812,1770306641730,-330.0,0.00037815,7]
[404574814,1770306641742,-150.71,0.00037882,60]
[404574816,1770306641752,-432.01,0.000379,30]
[404574818,1770306641761,-4133.3635157,0.00037951,2]
[404574819,1770306641770,-150.71,0.00037982,60]
[404574822,1770306641780,-741.26793723,0.00038,3]
[404574823,1770306641789,-1041.66666667,0.00038,3]
[404574826,1770306641799,-330.0,0.00038015,120]
[404574828,1770306641807,-150.71,0.00038082,60]
[404574830,1770306641817,-369.0,0.0003812,7]
[404574831,1770306641826,-150.71,0.00038182,60]
[404574833,1770306641835,-150.71,0.00038282,60]
[404574835,1770306641845,-150.71,0.00038382,120]
[404574837,1770306641854,-1066.89,0.000384,14]
[404574840,1770306641863,-150.71,0.00038482,120]
[404574841,1770306641873,-150.71,0.00038582,120]
[404574844,1770306641883,-330.0,0.00038616,2]
[404574846,1770306641892,-330.0,0.00038632,2]
[404574847,1770306641902,-372.0,0.00038663,2]
[404574849,1770306641911,-330.0,0.00038678,2]
[404574851,1770306641920,-150.71,0.00038682,120]
[404574854,1770306641930,-330.0,0.00038746,2]
[404574855,1770306641939,-150.71,0.00038782,120]
[404574857,1770306641949,-330.0,0.00038785,7]
[404574859,1770306641958,-150.71,0.00038882,120]
[404574861,1770306641967,-330.0,0.00038912,7]
[404574863,1770306641977,-299.707784,0.00038952,60]
[404574865,1770306641986,-150.71,0.00038982,120]
[404574867,1770306641999,-14683.04,0.00039,14]
[404574869,1770306642009,-150.0,0.0003908,60]
[404574872,1770306642019,-196.532025,0.0003908,60]
[404574873,1770306642027,-243.06405,0.0003908,60]
[404574875,1770306642037,-289.596076,0.0003908,60]
[404574877,1770306642046,-150.0,0.0003908,60]
[404574880,1770306642056,-336.128101,0.0003908,60]
[404574882,1770306642066,-382.660126,0.0003908,60]
[404574884,1770306642075,-389.458455,0.0003908,60]
[404574886,1770306642085,-628.91691,0.0003908,60]
[404574888,1770306642095,-429.192152,0.0003908,60]
[404574889,1770306642105,-868.375366,0.0003908,60]
[404574891,1770306642114,-475.724177,0.0003908,60]
[404574894,1770306642124,-1107.833821,0.0003908,60]
[404574895,1770306642134,-1347.292277,0.0003908,60]
[404574897,1770306642143,-522.256202,0.0003908,60]
[404574899,1770306642153,-568.788228,0.0003908,60]
[404574902,1770306642163,-1586.750732,0.0003908,60]
[404574914,1770306642280,-1826.209188,0.0003908,60]
[404574916,1770306642290,-2065.667643,0.0003908,60]
[404574918,1770306642300,-2305.126098,0.0003908,60]
[404574920,1770306642310,-150.71,0.00039082,120]
[404574922,1770306642319,-150.71,0.00039182,120]
[404574924,1770306642329,-150.71,0.00039282,120]
[404574926,1770306642339,-369.0,0.00039345,2]
[404574928,1770306642348,-150.71,0.00039382,120]
[404574930,1770306642358,-150.71,0.00039482,120]
[404574932,1770306642367,-150.71,0.00039582,120]
[404574934,1770306642376,-330.0,0.00039614,2]
[404574936,1770306642385,-150.0,0.00039643,60]
[404574938,1770306642395,-743.844371,0.00039643,60]
[404574940,1770306642404,-1337.688742,0.00039643,60]
[404574942,1770306642414,-1931.533113,0.00039643,60]
[404574944,1770306642422,-2525.377484,0.00039643,60]
[404574946,1770306642432,-3119.221855,0.00039643,60]
[404574948,1770306642441,-3713.066226,0.00039643,60]
[404574950,1770306642450,-4306.910597,0.00039643,60]
[404574952,1770306642460,-4900.754968,0.00039643,60]
[404574954,1770306642469,-5494.599339,0.00039643,60]
[404574956,1770306642479,-292.489247,0.00039643,60]
[404574958,1770306642493,-330.0,0.00039663,2]
[404574960,1770306642503,-150.71,0.00039682,120]
[404574962,1770306642512,-150.71,0.00039782,120]
[404574964,1770306642522,-369.0,0.00039815,120]
[404574966,1770306642532,-1019.96,0.0003982,120]
[404574968,1770306642547,-1019.96,0.0003982,120]
[404574970,1770306642556,-1019.96,0.0003982,120]
[404574972,1770306642566,-1019.96,0.0003982,120]
[404574975,1770306642579,-1019.96,0.0003982,120]
[404574978,1770306642589,-1019.96,0.0003982,120]
[404574981,1770306642598,-1019.96,0.0003982,120]
[404574983,1770306642608,-1019.96,0.0003982,120]
[404574985,1770306642617,-1019.96,0.0003982,120]
[404574987,1770306642627,-1019.96,0.0003982,120]
[404574989,1770306642637,-1019.96,0.0003982,120]
[404574991,1770306642646,-1019.96,0.0003982,120]
[404574992,1770306642655,-1019.96,0.0003982,120]
[404574993,1770306642665,-1019.96,0.0003982,120]
[404574994,1770306642674,-1019.96,0.0003982,120]
[404574996,1770306642683,-1019.96,0.0003982,120]
[404574998,1770306642693,-1019.96,0.0003982,120]
[404575000,1770306642702,-1019.96,0.0003982,120]
[404575001,1770306642711,-1019.96,0.0003982,120]
[404575003,1770306642720,-1019.96,0.0003982,120]
[404575005,1770306642729,-1019.96,0.0003982,120]
[404575006,1770306642743,-1019.96,0.0003982,120]
[404575007,1770306642752,-1019.96,0.0003982,120]
[404575008,1770306642761,-1019.96,0.0003982,120]
[404575009,1770306642771,-1019.96,0.0003982,120]
[404575010,1770306642780,-1019.96,0.0003982,120]
[404575011,1770306642790,-1019.96,0.0003982,120]
[404575012,1770306642799,-1019.96,0.0003982,120]
[404575013,1770306642808,-1019.96,0.0003982,120]
[404575014,1770306642818,-1019.96,0.0003982,120]
[404575015,1770306642827,-1019.96,0.0003982,120]
[404575016,1770306642837,-1019.96,0.0003982,120]
[404575017,1770306642846,-1019.96,0.0003982,120]
[404575018,1770306642856,-1019.96,0.0003982,120]
[404575019,1770306642866,-1019.96,0.0003982,120]
[404575020,1770306642875,-1019.96,0.0003982,120]
[404575021,1770306642885,-1019.96,0.0003982,120]
[404575022,1770306642894,-1019.96,0.0003982,120]
[404575023,1770306642903,-1019.96,0.0003982,120]
[404575024,1770306642912,-1019.96,0.0003982,120]
[404575025,1770306642921,-1019.96,0.0003982,120]
[404575026,1770306642931,-1019.96,0.0003982,120]
[404575027,1770306642940,-1019.96,0.0003982,120]
[404575028,1770306642949,-1019.96,0.0003982,120]
[404575029,1770306642958,-1019.96,0.0003982,120]
[404575030,1770306642968,-1019.96,0.0003982,120]
[404575031,1770306642977,-1019.96,0.0003982,120]
[404575032,1770306642986,-1019.96,0.0003982,120]
[404575033,1770306642999,-1019.96,0.0003982,120]
[404575034,1770306643008,-1019.96,0.0003982,120]
[404575035,1770306643018,-1871.28987083,0.0003982,120]
[404575036,1770306643027,-30041.960001,0.0003982,30]
[404575037,1770306643036,-250.0,0.0003982,10]
[404575038,1770306643045,-250.0,0.0003982,10]
[404575039,1770306643055,-250.0,0.0003982,10]
[404575040,1770306643064,-352.102841,0.0003982,10]
[404575041,1770306643073,-183.9654156,0.0003982,7]
[404575042,1770306643082,-306.0506361,0.0003982,7]
[404575043,1770306643092,-306.0506361,0.0003982,7]
[404575044,1770306643101,-612.1012722,0.0003982,7]
[404575045,1770306643111,-306.0506361,0.0003982,7]
[404575046,1770306643121,-306.0506361,0.0003982,7]
[404575047,1770306643130,-306.0506361,0.0003982,7]
[404575048,1770306643139,-306.0506361,0.0003982,7]
[404575049,1770306643148,-306.0506361,0.0003982,7]
[404575050,1770306643158,-306.0506361,0.0003982,7]
[404575051,1770306643168,-306.0506361,0.0003982,7]
[404575052,1770306643177,-306.0506361,0.0003982,7]
[404575053,1770306643186,-306.0506361,0.0003982,7]
[404575054,1770306643196,-853.2545755,0.0003982,120]
[404575055,1770306643205,-150.71,0.00039882,120]
[404575056,1770306643215,-1066.89,0.000399,14]
[404575057,1770306643225,-330.0,0.00039946,2]
[404575058,1770306643235,-190.18360037,0.00039947,7]
[404575059,1770306643248,-189.9309683,0.00039947,7]
[404575060,1770306643259,-323.21928186,0.00039982,120]
[404575061,1770306643268,-150.71,0.00039982,120]
[404575062,1770306643278,-4692.2220701,0.0003999,3]
[404575063,1770306643287,-356.22,0.0004,120]
[404575064,1770306643298,-1041.66666667,0.0004,120]
[404575065,1770306643308,-150.71,0.00040082,120]
[404575066,1770306643318,-158.88,0.000401,7]
[404575067,1770306643328,-330.0,0.00040109,2]
[404575068,1770306643337,-672.44631815,0.00040145,7]
[404575069,1770306643346,-369.0,0.00040172,2]
[404575070,1770306643356,-150.71,0.00040182,120]
[404575071,1770306643366,-150.71,0.00040282,120]
[404575072,1770306643376,-369.0,0.00040346,7]
[404575073,1770306643385,-330.0,0.00040368,2]
[404575074,1770306643395,-150.71,0.00040382,120]
[404575075,1770306643404,-150.71,0.00040482,120]
[404575076,1770306643415,-14683.04,0.000405,14]
[404575077,1770306643424,-150.71,0.00040582,120]
[404575078,1770306643434,-150.71,0.00040682,120]
[404575079,1770306643444,-330.0,0.00040753,120]
[404575080,1770306643454,-150.71,0.00040782,120]
[404575081,1770306643464,-336.78345899,0.00040822,2]
[404575082,1770306643473,-336.3360897,0.00040822,2]
[404575083,1770306643483,-605.40496147,0.00040822,2]
[404575084,1770306643495,-1076.27548705,0.00040822,2]
[404575085,1770306643505,-150.71,0.00040882,120]
[404575086,1770306643515,-150.71,0.00040982,120]
[404575087,1770306643524,-150.71,0.00041082,120]
[404575088,1770306643534,-758.96414934,0.00041087,7]
[404575089,1770306643545,-369.0,0.00041109,2]
[404575090,1770306643556,-150.71,0.00041182,120]
[404575091,1770306643565,-1041.66666667,0.000412,120]
[404575092,1770306643574,-150.71,0.00041282,120]
[404575093,1770306643584,-4692.2220701,0.0004129,3]
[404575094,1770306643594,-150.71,0.00041382,120]
[404575095,1770306643604,-150.71,0.00041482,120]
[404575096,1770306643614,-150.71,0.00041582,120]
[404575097,1770306643626,-150.71,0.00041682,120]
[404575098,1770306643635,-150.71,0.00041782,120]
[404575099,1770306643645,-150.71,0.00041882,120]
[404575100,1770306643655,-158.88,0.000419,14]
[404575101,1770306643666,-150.71,0.00041982,120]
[404575102,1770306643682,-14683.04,0.00042,14]
[404575103,1770306643693,-150.71,0.00042082,120]
[404575104,1770306643704,-150.71,0.00042182,120]
[404575105,1770306643719,-150.71,0.00042282,120]
[404575106,1770306643730,-150.71,0.00042382,120]
[404575107,1770306643753,-278.78,0.000424,90]
[404575108,1770306643765,-150.71,0.00042482,120]
[404575109,1770306643775,-150.71,0.00042582,120]
[404575110,1770306643787,-150.71,0.00042682,120]
[404575111,1770306643799,-150.71,0.00042782,120]
[404575112,1770306643810,-150.71,0.00042882,120]
[404575113,1770306643820,-150.71,0.00042982,120]
[404575114,1770306643830,-150.71,0.00043082,120]
[404575115,1770306643840,-150.71,0.00043182,120]
[404575117,1770306643850,-150.71,0.00043282,120]
[404575119,1770306643860,-432.01,0.000433,30]
[404575121,1770306643870,-150.71,0.00043382,120]
[404575123,1770306643880,-4692.2220701,0.0004342,3]
[404575125,1770306643891,-1036.738899,0.0004343,2]
[404575126,1770306643902,-26923.4733916,0.0004343,2]
[404575128,1770306643912,-150.71,0.00043482,120]
[404575129,1770306643922,-14683.04,0.000435,14]
[404575133,1770306643932,-150.93586688,0.00043582,120]
[404575136,1770306643941,-1000.0,0.000438,90]
[404575138,1770306643951,-432.01,0.000438,30]
[404575139,1770306643961,-187.12,0.00045205,30]
[404575140,1770306643971,-562.83289725,0.00045242,2]
[404575141,1770306643981,-200.0,0.00046,120]
[404575142,1770306644000,-4260.02,0.00046755,15]
[404575143,1770306644011,-3248.24777274,0.00046967,2]
[404575144,1770306644021,-150.0,0.00047,120]
[404575145,1770306644031,-432.01,0.000472,30]
[404575146,1770306644040,-392.0,0.000476,30]
[404575147,1770306644050,-1066.89,0.000476,14]
[404575148,1770306644060,-150.0,0.00048,120]
[404575149,1770306644070,-475.6,0.00048393,15]
[404575150,1770306644080,-535.6,0.00048393,15]
[404575151,1770306644089,-500.0,0.00048693,60]
[404575152,1770306644099,-689.0,0.00049,120]
[404575153,1770306644109,-150.0,0.00049,120]
[404575154,1770306644119,-25630.37,0.000497,15]
[404575155,1770306644129,-34785.09,0.000497,15]
[404575156,1770306644139,-152.0,0.0005,120]
[404575157,1770306644149,-150.0,0.0005,120]
[404575158,1770306644159,-460.26,0.00050136,30]
[404575159,1770306644169,-4692.2220701,0.00050206,4]
[404575160,1770306644178,-26923.4733916,0.00050216,2]
[404575161,1770306644188,-22008.71391311,0.000503,120]
[404575162,1770306644198,-9066.99298838,0.000503,120]
[404575163,1770306644208,-4133.3635157,0.00050341,28]
[404575164,1770306644218,-4692.2220701,0.00050438,4]
[404575165,1770306644228,-1036.738899,0.00050448,2]
[404575166,1770306644242,-432.01,0.000505,30]
[404575167,1770306644251,-14683.04,0.000505,14]
[404575168,1770306644261,-184.1,0.00050521,15]
[404575169,1770306644272,-244.1,0.00050521,15]
[404575170,1770306644281,-460.26,0.00050821,32]
[404575171,1770306644290,-150.0,0.00051,120]
[404575172,1770306644300,-2644.1,0.00051206,15]
[404575173,1770306644310,-888.01,0.00051206,15]
[404575174,1770306644320,-460.26,0.00051506,34]
[404575175,1770306644330,-152.0,0.000518,120]
[404575176,1770306644339,-850.86,0.00051891,15]